[Event "January 9 Early 2024"]
[Site "https://www.chess.com"]
[Date "2024.01.11"]
[Round "10"]
[White "Marn, Jan"]
[Black "Sokolovsky, Yahli"]
[Result "0-1"]
[Board "146"]
[TimeControl "180+1"]
[WhiteFideId "14619245"]
[BlackFideId "2820242"]
[WhiteElo "2501"]
[BlackElo "2782"]
[WhiteTeam "SLO"]
[BlackTeam "ISR"]
[WhiteClock "0:00:03"]
[BlackClock "0:00:04"]

1. d4 {[%clk 0:03:00]}  d6 {[%clk 0:02:59]} 2. Nf3 {[%clk 0:03:00]}  g6 {[%clk 0:03:00]} 3. e4 {[%clk 0:02:59]}  Bg7 {[%clk 0:03:00]} 4. h3 {[%clk 0:02:59]}  a6 {[%clk 0:03:00]} 5. a4 {[%clk 0:02:59]}  b6 {[%clk 0:03:00]} 6. Bd3 {[%clk 0:02:58]}  Bb7 {[%clk 0:03:01]} 7. c3 {[%clk 0:02:58]}  Nd7 {[%clk 0:03:01]} 8. Na3 {[%clk 0:02:58]}  c5 {[%clk 0:03:02]} 9. Nc2 {[%clk 0:02:58]}  Ngf6 {[%clk 0:03:02]} 10. Qe2 {[%clk 0:02:57]}  e5 {[%clk 0:02:57]} 11. d5 {[%clk 0:02:57]}  O-O {[%clk 0:02:57]} 12. O-O {[%clk 0:02:55]}  Nh5 {[%clk 0:02:58]} 13. g3 {[%clk 0:02:34]}  Qe8 {[%clk 0:02:58]} 14. Ne3 {[%clk 0:02:22]}  f5 {[%clk 0:02:54]} 15. exf5 {[%clk 0:02:17]}  e4 {[%clk 0:02:54]} 16. Ng5 {[%clk 0:02:06]}  exd3 {[%clk 0:02:52]} 17. Qxd3 {[%clk 0:02:07]}  Ne5 {[%clk 0:02:13]} 18. Qd1 {[%clk 0:02:07]}  gxf5 {[%clk 0:02:09]} 19. Ne6 {[%clk 0:02:08]}  Qg6 {[%clk 0:01:43]} 20. Nxf8 {[%clk 0:02:02]}  Rxf8 {[%clk 0:01:43]} 21. Ng2 {[%clk 0:02:00]}  Qf7 {[%clk 0:01:37]} 22. Nf4 {[%clk 0:01:58]}  Nxf4 {[%clk 0:01:36]} 23. Bxf4 {[%clk 0:01:58]}  Bxd5 {[%clk 0:01:35]} 24. Bxe5 {[%clk 0:01:53]}  dxe5 {[%clk 0:01:35]} 25. Re1 {[%clk 0:01:50]}  Ba8 {[%clk 0:01:31]} 26. f3 {[%clk 0:01:37]}  Qh5 {[%clk 0:01:16]} 27. Kg2 {[%clk 0:01:34]}  f4 {[%clk 0:01:03]} 28. g4 {[%clk 0:01:33]}  Qh4 {[%clk 0:01:02]} 29. Rg1 {[%clk 0:00:47]}  Qg3+ {[%clk 0:01:00]} 30. Kf1 {[%clk 0:00:47]}  Qxh3+ {[%clk 0:01:00]} 31. Kf2 {[%clk 0:00:47]}  Qh4+ {[%clk 0:00:53]} 32. Kf1 {[%clk 0:00:47]}  Qh3+ {[%clk 0:00:49]} 33. Kf2 {[%clk 0:00:47]}  Bf6 {[%clk 0:00:50]} 34. g5 {[%clk 0:00:47]}  Qh4+ {[%clk 0:00:27]} 35. Kf1 {[%clk 0:00:47]}  Bxg5 {[%clk 0:00:28]} 36. Qd6 {[%clk 0:00:13]}  Qh3+ {[%clk 0:00:24]} 37. Ke1 {[%clk 0:00:13]}  h6 {[%clk 0:00:10]} 38. Kd2 {[%clk 0:00:03]}  Qf5 {[%clk 0:00:04]} 39. Rae1 {[%clk 0:00:02]}  Re8 {[%clk 0:00:03]} 40. Kc1 {[%clk 0:00:02]}  Qe6 {[%clk 0:00:03]} 41. Qc7 {[%clk 0:00:01]}  Bxf3 {[%clk 0:00:02]} 42. Ref1 {[%clk 0:00:01]}  e4 {[%clk 0:00:03]} 43. Rxf3 {[%clk 0:00:01]}  exf3 {[%clk 0:00:03]} 44. Qxf4 {[%clk 0:00:02]}  Qe3+ {[%clk 0:00:03]} 45. Qxe3 {[%clk 0:00:02]}  Rxe3 {[%clk 0:00:04]} 46. Kc2 {[%clk 0:00:03]}  Re2+ {[%clk 0:00:04]} 0-1

[Event "January 9 Early 2024"]
[Site "https://www.chess.com"]
[Date "2024.01.11"]
[Round "10"]
[White "Radjabov, Teimour"]
[Black "Dominguez Perez, Leinier"]
[Result "1-0"]
[Board "147"]
[TimeControl "180+1"]
[WhiteFideId "13400924"]
[BlackFideId "3503240"]
[WhiteElo "3043"]
[BlackElo "2984"]
[WhiteTeam "AZE"]
[BlackTeam "USA"]
[WhiteClock "0:00:10"]
[BlackClock "0:00:03"]

1. Nf3 {[%clk 0:02:57]}  Nf6 {[%clk 0:02:59]} 2. c4 {[%clk 0:02:57]}  c5 {[%clk 0:02:58]} 3. Nc3 {[%clk 0:02:56]}  Nc6 {[%clk 0:02:58]} 4. g3 {[%clk 0:02:55]}  g6 {[%clk 0:02:56]} 5. Bg2 {[%clk 0:02:53]}  Bg7 {[%clk 0:02:57]} 6. O-O {[%clk 0:02:48]}  O-O {[%clk 0:02:56]} 7. d4 {[%clk 0:02:49]}  cxd4 {[%clk 0:02:55]} 8. Nxd4 {[%clk 0:02:49]}  d6 {[%clk 0:02:55]} 9. b3 {[%clk 0:02:42]}  Nxd4 {[%clk 0:02:45]} 10. Qxd4 {[%clk 0:02:41]}  Ne4 {[%clk 0:02:46]} 11. Qxe4 {[%clk 0:02:23]}  Bxc3 {[%clk 0:02:46]} 12. Bh6 {[%clk 0:01:55]}  Bxa1 {[%clk 0:02:45]} 13. Bxf8 {[%clk 0:01:49]}  Bf6 {[%clk 0:02:43]} 14. Bh6 {[%clk 0:01:48]}  Rb8 {[%clk 0:02:42]} 15. Bd2 {[%clk 0:01:17]}  Qb6 {[%clk 0:02:17]} 16. Qe3 {[%clk 0:01:11]}  Qxe3 {[%clk 0:01:53]} 17. Bxe3 {[%clk 0:01:11]}  b6 {[%clk 0:01:54]} 18. Rd1 {[%clk 0:01:06]}  Bb7 {[%clk 0:01:40]} 19. Bxb7 {[%clk 0:00:58]}  Rxb7 {[%clk 0:01:39]} 20. Rd5 {[%clk 0:00:58]}  a6 {[%clk 0:01:24]} 21. a4 {[%clk 0:00:56]}  Kf8 {[%clk 0:01:23]} 22. g4 {[%clk 0:00:55]}  Ke8 {[%clk 0:01:20]} 23. g5 {[%clk 0:00:55]}  Bg7 {[%clk 0:01:18]} 24. Kg2 {[%clk 0:00:51]}  Kd7 {[%clk 0:01:16]} 25. Rd3 {[%clk 0:00:49]}  Rb8 {[%clk 0:01:09]} 26. Bd2 {[%clk 0:00:47]}  Kc6 {[%clk 0:00:59]} 27. e4 {[%clk 0:00:41]}  Rh8 {[%clk 0:00:41]} 28. Rh3 {[%clk 0:00:35]}  e6 {[%clk 0:00:36]} 29. Kf1 {[%clk 0:00:27]}  Bd4 {[%clk 0:00:27]} 30. Rd3 {[%clk 0:00:24]}  Bg7 {[%clk 0:00:23]} 31. Rf3 {[%clk 0:00:21]}  Rf8 {[%clk 0:00:22]} 32. Rh3 {[%clk 0:00:21]}  Rh8 {[%clk 0:00:22]} 33. Ke2 {[%clk 0:00:21]}  Bd4 {[%clk 0:00:20]} 34. Rd3 {[%clk 0:00:20]}  Bg7 {[%clk 0:00:19]} 35. Rf3 {[%clk 0:00:18]}  Rf8 {[%clk 0:00:19]} 36. Rh3 {[%clk 0:00:18]}  Rh8 {[%clk 0:00:19]} 37. Kd3 {[%clk 0:00:16]}  d5 {[%clk 0:00:17]} 38. exd5+ {[%clk 0:00:15]}  exd5 {[%clk 0:00:17]} 39. Rf3 {[%clk 0:00:15]}  Rd8 {[%clk 0:00:14]} 40. cxd5+ {[%clk 0:00:12]}  Rxd5+ {[%clk 0:00:14]} 41. Ke2 {[%clk 0:00:12]}  Rf5 {[%clk 0:00:11]} 42. Rh3 {[%clk 0:00:12]}  Bd4 {[%clk 0:00:09]} 43. f4 {[%clk 0:00:12]}  Bc5 {[%clk 0:00:06]} 44. Rxh7 {[%clk 0:00:12]}  Bd6 {[%clk 0:00:06]} 45. Kf3 {[%clk 0:00:12]}  b5 {[%clk 0:00:06]} 46. axb5+ {[%clk 0:00:10]}  axb5 {[%clk 0:00:06]} 47. Be3 {[%clk 0:00:10]}  Kd7 {[%clk 0:00:04]} 48. h4 {[%clk 0:00:09]}  b4 {[%clk 0:00:03]} 49. h5 {[%clk 0:00:09]}  gxh5 {[%clk 0:00:03]} 50. Ke4 {[%clk 0:00:10]} 1-0

[Event "January 9 Early 2024"]
[Site "https://www.chess.com"]
[Date "2024.01.11"]
[Round "10"]
[White "Isajevsky, Anton"]
[Black "Kosteniuk, Alexandra"]
[Result "1-0"]
[Board "149"]
[TimeControl "180+1"]
[WhiteFideId "4142500"]
[BlackFideId "4128125"]
[WhiteElo "2654"]
[BlackElo "2745"]
[WhiteTeam "RUS"]
[BlackTeam "SUI"]
[WhiteClock "0:00:02"]
[BlackClock "0:00:07"]

1. d4 {[%clk 0:01:55]}  Nf6 {[%clk 0:02:59]} 2. Nf3 {[%clk 0:01:22]}  e6 {[%clk 0:02:56]} 3. g3 {[%clk 0:01:20]}  b5 {[%clk 0:02:54]} 4. Bg2 {[%clk 0:01:16]}  Bb7 {[%clk 0:02:53]} 5. O-O {[%clk 0:01:16]}  d5 {[%clk 0:02:48]} 6. Bg5 {[%clk 0:01:16]}  Be7 {[%clk 0:02:48]} 7. c3 {[%clk 0:01:10]}  O-O {[%clk 0:02:47]} 8. Nbd2 {[%clk 0:01:07]}  Nbd7 {[%clk 0:02:45]} 9. a4 {[%clk 0:01:03]}  a6 {[%clk 0:02:44]} 10. b4 {[%clk 0:00:58]}  bxa4 {[%clk 0:02:32]} 11. Bxf6 {[%clk 0:00:50]}  Bxf6 {[%clk 0:02:26]} 12. Qxa4 {[%clk 0:00:39]}  Nb6 {[%clk 0:02:25]} 13. Qc2 {[%clk 0:00:36]}  g6 {[%clk 0:02:06]} 14. Ra5 {[%clk 0:00:36]}  Bg7 {[%clk 0:02:04]} 15. Rfa1 {[%clk 0:00:36]}  Qd6 {[%clk 0:01:58]} 16. e3 {[%clk 0:00:35]}  f6 {[%clk 0:01:40]} 17. Bf1 {[%clk 0:00:35]}  Nd7 {[%clk 0:01:38]} 18. Qa2 {[%clk 0:00:30]}  e5 {[%clk 0:01:20]} 19. Bxa6 {[%clk 0:00:29]}  Bxa6 {[%clk 0:01:19]} 20. Rxa6 {[%clk 0:00:30]}  Nb6 {[%clk 0:01:18]} 21. Qb3 {[%clk 0:00:25]}  Rxa6 {[%clk 0:01:09]} 22. Rxa6 {[%clk 0:00:26]}  Qc6 {[%clk 0:01:03]} 23. Ra5 {[%clk 0:00:26]}  Kh8 {[%clk 0:01:02]} 24. Qa3 {[%clk 0:00:19]}  e4 {[%clk 0:00:58]} 25. Ne1 {[%clk 0:00:16]}  f5 {[%clk 0:00:58]} 26. Ng2 {[%clk 0:00:15]}  g5 {[%clk 0:00:58]} 27. h4 {[%clk 0:00:15]}  h6 {[%clk 0:00:58]} 28. b5 {[%clk 0:00:13]}  Qd7 {[%clk 0:00:54]} 29. Qc5 {[%clk 0:00:12]}  f4 {[%clk 0:00:45]} 30. exf4 {[%clk 0:00:06]}  gxf4 {[%clk 0:00:44]} 31. gxf4 {[%clk 0:00:07]}  Rg8 {[%clk 0:00:40]} 32. Nf1 {[%clk 0:00:06]}  Bf8 {[%clk 0:00:35]} 33. Qc6 {[%clk 0:00:06]}  Qxc6 {[%clk 0:00:30]} 34. bxc6 {[%clk 0:00:06]}  Bd6 {[%clk 0:00:30]} 35. Ng3 {[%clk 0:00:05]}  Rg4 {[%clk 0:00:18]} 36. h5 {[%clk 0:00:02]}  Bxf4 {[%clk 0:00:15]} 37. Nf5 {[%clk 0:00:03]}  Bd2 {[%clk 0:00:08]} 38. Rc5 {[%clk 0:00:02]}  Kh7 {[%clk 0:00:08]} 39. Kf1 {[%clk 0:00:01]}  Bg5 {[%clk 0:00:07]} 40. Nfe3 {[%clk 0:00:01]}  Bxe3 {[%clk 0:00:06]} 41. Nxe3 {[%clk 0:00:02]}  Rg5 {[%clk 0:00:07]} 42. Rb5 {[%clk 0:00:02]} 1-0

[Event "January 9 Early 2024"]
[Site "https://www.chess.com"]
[Date "2024.01.11"]
[Round "10"]
[White "Bharath Subramaniyam H"]
[Black "Bryakin, Mikhail"]
[Result "1-0"]
[Board "154"]
[TimeControl "180+1"]
[WhiteFideId "46634827"]
[BlackFideId "4165314"]
[WhiteElo "2964"]
[BlackElo "2846"]
[WhiteTeam "IND"]
[BlackTeam "SRB"]
[WhiteClock "0:00:29"]
[BlackClock "0:00:01"]

1. b3 {[%clk 0:02:55]}  Nf6 {[%clk 0:02:56]} 2. Bb2 {[%clk 0:02:55]}  g6 {[%clk 0:02:56]} 3. Nf3 {[%clk 0:02:55]}  Bg7 {[%clk 0:02:57]} 4. g3 {[%clk 0:02:56]}  O-O {[%clk 0:02:57]} 5. Bg2 {[%clk 0:02:56]}  b6 {[%clk 0:02:57]} 6. c4 {[%clk 0:02:55]}  Bb7 {[%clk 0:02:58]} 7. d4 {[%clk 0:02:56]}  d6 {[%clk 0:02:50]} 8. O-O {[%clk 0:02:55]}  Nbd7 {[%clk 0:02:50]} 9. Nc3 {[%clk 0:02:47]}  Ne4 {[%clk 0:02:50]} 10. Qc2 {[%clk 0:02:39]}  Nxc3 {[%clk 0:02:46]} 11. Bxc3 {[%clk 0:02:40]}  e6 {[%clk 0:02:30]} 12. e4 {[%clk 0:02:39]}  e5 {[%clk 0:02:29]} 13. d5 {[%clk 0:02:37]}  a5 {[%clk 0:02:28]} 14. a3 {[%clk 0:02:37]}  Qe7 {[%clk 0:02:24]} 15. b4 {[%clk 0:02:35]}  axb4 {[%clk 0:02:25]} 16. axb4 {[%clk 0:02:36]}  Rxa1 {[%clk 0:02:24]} 17. Rxa1 {[%clk 0:02:36]}  Ra8 {[%clk 0:02:25]} 18. Rxa8+ {[%clk 0:02:36]}  Bxa8 {[%clk 0:02:26]} 19. Qa2 {[%clk 0:02:28]}  Qd8 {[%clk 0:02:26]} 20. Nd2 {[%clk 0:02:23]}  Bh6 {[%clk 0:02:23]} 21. Nb3 {[%clk 0:02:20]}  Bb7 {[%clk 0:02:23]} 22. Qa4 {[%clk 0:02:11]}  Nf6 {[%clk 0:02:16]} 23. c5 {[%clk 0:02:11]}  bxc5 {[%clk 0:02:15]} 24. bxc5 {[%clk 0:02:12]}  Qb8 {[%clk 0:02:08]} 25. Qb4 {[%clk 0:01:59]}  Qc8 {[%clk 0:01:56]} 26. Na5 {[%clk 0:01:48]}  Ba6 {[%clk 0:01:43]} 27. cxd6 {[%clk 0:01:27]}  cxd6 {[%clk 0:01:39]} 28. Nc6 {[%clk 0:01:28]}  Bf8 {[%clk 0:01:36]} 29. f3 {[%clk 0:01:16]}  Qb7 {[%clk 0:01:32]} 30. Bf1 {[%clk 0:01:09]}  Qxb4 {[%clk 0:01:27]} 31. Bxb4 {[%clk 0:01:10]}  Bxf1 {[%clk 0:01:24]} 32. Kxf1 {[%clk 0:01:11]}  Ne8 {[%clk 0:01:21]} 33. Ke2 {[%clk 0:01:08]}  f5 {[%clk 0:01:22]} 34. Kd3 {[%clk 0:01:08]}  Kf7 {[%clk 0:01:22]} 35. Ba3 {[%clk 0:01:01]}  h5 {[%clk 0:01:17]} 36. Bc1 {[%clk 0:00:59]}  Be7 {[%clk 0:01:16]} 37. Kc4 {[%clk 0:00:55]}  fxe4 {[%clk 0:01:05]} 38. fxe4 {[%clk 0:00:55]}  Bf8 {[%clk 0:01:06]} 39. Bg5 {[%clk 0:00:55]}  Bg7 {[%clk 0:01:05]} 40. Kb5 {[%clk 0:00:50]}  Bf6 {[%clk 0:00:59]} 41. h4 {[%clk 0:00:50]}  Ng7 {[%clk 0:00:30]} 42. Na5 {[%clk 0:00:42]}  Bxg5 {[%clk 0:00:21]} 43. hxg5 {[%clk 0:00:43]}  Ke7 {[%clk 0:00:14]} 44. Kc6 {[%clk 0:00:41]}  Nf5 {[%clk 0:00:06]} 45. exf5 {[%clk 0:00:38]}  gxf5 {[%clk 0:00:06]} 46. Nc4 {[%clk 0:00:38]}  f4 {[%clk 0:00:06]} 47. gxf4 {[%clk 0:00:39]}  h4 {[%clk 0:00:02]} 48. fxe5 {[%clk 0:00:28]}  h3 {[%clk 0:00:03]} 49. exd6+ {[%clk 0:00:29]}  Kd8 {[%clk 0:00:01]} 50. d7 {[%clk 0:00:27]}  h2 {[%clk 0:00:01]} 51. Nd6 {[%clk 0:00:26]}  h1=Q {[%clk 0:00:01]} 52. Nb7+ {[%clk 0:00:27]}  Ke7 {[%clk 0:00:01]} 53. d8=Q+ {[%clk 0:00:28]}  Kf7 {[%clk 0:00:02]} 54. Qf6+ {[%clk 0:00:28]}  Kg8 {[%clk 0:00:02]} 55. Qg6+ {[%clk 0:00:28]}  Kf8 {[%clk 0:00:01]} 56. Qh6+ {[%clk 0:00:29]}  Kg8 {[%clk 0:00:01]} 57. Qxh1 {[%clk 0:00:29]} 1-0

[Event "January 9 Early 2024"]
[Site "https://www.chess.com"]
[Date "2024.01.11"]
[Round "10"]
[White "Prudnykova, Olga"]
[Black "Chernomordik, Pavel"]
[Result "1-0"]
[Board "155"]
[TimeControl "180+1"]
[WhiteFideId "14121093"]
[BlackFideId "2804530"]
[WhiteElo "2293"]
[BlackElo "2436"]
[WhiteTeam "ISL"]
[BlackTeam "ISR"]
[WhiteClock "0:00:15"]
[BlackClock "0:00:01"]

1. e4 {[%clk 0:03:00]}  g6 {[%clk 0:02:59]} 2. d4 {[%clk 0:03:00]}  Bg7 {[%clk 0:02:58]} 3. Nc3 {[%clk 0:03:01]}  d6 {[%clk 0:02:57]} 4. Be3 {[%clk 0:02:58]}  a6 {[%clk 0:02:56]} 5. h3 {[%clk 0:02:58]}  b5 {[%clk 0:02:56]} 6. g4 {[%clk 0:02:58]}  Bb7 {[%clk 0:02:55]} 7. Bg2 {[%clk 0:02:58]}  Nd7 {[%clk 0:02:54]} 8. Nge2 {[%clk 0:02:58]}  b4 {[%clk 0:02:48]} 9. Nd5 {[%clk 0:02:58]}  c5 {[%clk 0:02:45]} 10. Qd2 {[%clk 0:02:46]}  e6 {[%clk 0:02:31]} 11. Ndf4 {[%clk 0:02:39]}  cxd4 {[%clk 0:02:29]} 12. Nxd4 {[%clk 0:02:38]}  e5 {[%clk 0:02:27]} 13. Nfe6 {[%clk 0:02:38]}  fxe6 {[%clk 0:02:25]} 14. Nxe6 {[%clk 0:02:38]}  Qe7 {[%clk 0:02:24]} 15. Nc7+ {[%clk 0:02:38]}  Kf8 {[%clk 0:02:20]} 16. Nxa8 {[%clk 0:02:32]}  Bxa8 {[%clk 0:02:20]} 17. O-O-O {[%clk 0:02:32]}  Ngf6 {[%clk 0:02:17]} 18. Qxb4 {[%clk 0:02:31]}  Kf7 {[%clk 0:02:08]} 19. f3 {[%clk 0:02:17]}  d5 {[%clk 0:02:04]} 20. Qxe7+ {[%clk 0:02:11]}  Kxe7 {[%clk 0:02:03]} 21. exd5 {[%clk 0:02:03]}  Nxd5 {[%clk 0:01:59]} 22. Bg5+ {[%clk 0:02:02]}  Bf6 {[%clk 0:01:57]} 23. Bd2 {[%clk 0:01:59]}  Rb8 {[%clk 0:01:49]} 24. Rhe1 {[%clk 0:01:56]}  Kf7 {[%clk 0:01:39]} 25. c3 {[%clk 0:01:36]}  Nc5 {[%clk 0:01:37]} 26. Bf1 {[%clk 0:01:34]}  Nc7 {[%clk 0:01:22]} 27. Be3 {[%clk 0:01:24]}  N7e6 {[%clk 0:01:15]} 28. Bc4 {[%clk 0:01:20]}  Rc8 {[%clk 0:01:02]} 29. f4 {[%clk 0:01:09]}  Bf3 {[%clk 0:00:47]} 30. Rd6 {[%clk 0:01:04]}  Be7 {[%clk 0:00:46]} 31. Rb6 {[%clk 0:00:21]}  Rc6 {[%clk 0:00:31]} 32. Rxc6 {[%clk 0:00:20]}  Bxc6 {[%clk 0:00:30]} 33. f5 {[%clk 0:00:21]}  Kf6 {[%clk 0:00:20]} 34. fxe6 {[%clk 0:00:20]}  Bf3 {[%clk 0:00:16]} 35. Rf1 {[%clk 0:00:19]}  e4 {[%clk 0:00:15]} 36. g5+ {[%clk 0:00:16]}  Ke5 {[%clk 0:00:14]} 37. h4 {[%clk 0:00:17]}  a5 {[%clk 0:00:11]} 38. Bd4+ {[%clk 0:00:17]}  Kf4 {[%clk 0:00:10]} 39. Kd2 {[%clk 0:00:16]}  Bd6 {[%clk 0:00:08]} 40. Be3+ {[%clk 0:00:16]}  Kg3 {[%clk 0:00:07]} 41. b4 {[%clk 0:00:16]}  axb4 {[%clk 0:00:07]} 42. cxb4 {[%clk 0:00:16]}  Nb7 {[%clk 0:00:05]} 43. b5 {[%clk 0:00:16]}  Bb4+ {[%clk 0:00:02]} 44. Kc2 {[%clk 0:00:16]}  Nd6 {[%clk 0:00:02]} 45. Bd5 {[%clk 0:00:15]}  Nxb5 {[%clk 0:00:02]} 46. Kb3 {[%clk 0:00:15]}  Be7 {[%clk 0:00:01]} 47. a4 {[%clk 0:00:15]}  Nc7 {[%clk 0:00:01]} 48. Bc4 {[%clk 0:00:15]} 1-0

[Event "January 9 Early 2024"]
[Site "https://www.chess.com"]
[Date "2024.01.11"]
[Round "10"]
[White "Kuhn, Clement"]
[Black "Wagner, Dennis"]
[Result "1/2-1/2"]
[Board "158"]
[TimeControl "180+1"]
[WhiteFideId "36099775"]
[BlackFideId "24650684"]
[WhiteElo "2598"]
[BlackElo "2737"]
[WhiteTeam "FRA"]
[BlackTeam "GER"]
[WhiteClock "0:00:26"]
[BlackClock "0:00:15"]

1. e4 {[%clk 0:03:00]}  e5 {[%clk 0:02:58]} 2. Nc3 {[%clk 0:03:00]}  Nf6 {[%clk 0:02:58]} 3. f4 {[%clk 0:03:01]}  d5 {[%clk 0:02:58]} 4. fxe5 {[%clk 0:03:01]}  Nxe4 {[%clk 0:02:58]} 5. Qf3 {[%clk 0:03:02]}  Nc6 {[%clk 0:02:57]} 6. Bb5 {[%clk 0:03:01]}  Nxc3 {[%clk 0:02:56]} 7. dxc3 {[%clk 0:03:02]}  Qh4+ {[%clk 0:02:56]} 8. g3 {[%clk 0:03:03]}  Qe4+ {[%clk 0:02:56]} 9. Qxe4 {[%clk 0:03:04]}  dxe4 {[%clk 0:02:57]} 10. Ne2 {[%clk 0:03:04]}  Bd7 {[%clk 0:02:55]} 11. Bxc6 {[%clk 0:03:05]}  Bxc6 {[%clk 0:02:54]} 12. Rf1 {[%clk 0:03:05]}  Be7 {[%clk 0:02:49]} 13. Nd4 {[%clk 0:03:04]}  Bd7 {[%clk 0:02:37]} 14. Nf5 {[%clk 0:03:04]}  Bxf5 {[%clk 0:02:27]} 15. Rxf5 {[%clk 0:03:05]}  O-O {[%clk 0:02:26]} 16. Rf4 {[%clk 0:02:56]}  f5 {[%clk 0:02:13]} 17. exf6 {[%clk 0:02:55]}  Bxf6 {[%clk 0:02:12]} 18. Rxe4 {[%clk 0:02:53]}  Rfe8 {[%clk 0:02:13]} 19. Rxe8+ {[%clk 0:02:51]}  Rxe8+ {[%clk 0:02:14]} 20. Kf2 {[%clk 0:02:51]}  Kf7 {[%clk 0:02:10]} 21. Be3 {[%clk 0:02:50]}  a6 {[%clk 0:02:09]} 22. Rd1 {[%clk 0:02:48]}  Rd8 {[%clk 0:02:07]} 23. Rd3 {[%clk 0:02:46]}  Ke6 {[%clk 0:02:05]} 24. Kf3 {[%clk 0:02:46]}  Rd5 {[%clk 0:02:02]} 25. Bf4 {[%clk 0:02:30]}  c6 {[%clk 0:01:57]} 26. Ke4 {[%clk 0:02:28]}  g5 {[%clk 0:01:54]} 27. Be3 {[%clk 0:02:18]}  Re5+ {[%clk 0:01:50]} 28. Kf3 {[%clk 0:02:18]}  h5 {[%clk 0:01:44]} 29. Bd4 {[%clk 0:02:12]}  Rf5+ {[%clk 0:01:38]} 30. Ke3 {[%clk 0:02:09]}  g4 {[%clk 0:01:35]} 31. Bxf6 {[%clk 0:02:08]}  Rxf6 {[%clk 0:01:36]} 32. Ke2 {[%clk 0:02:01]}  Rf8 {[%clk 0:01:32]} 33. c4 {[%clk 0:01:53]}  Ke7 {[%clk 0:01:24]} 34. Rb3 {[%clk 0:01:50]}  Rb8 {[%clk 0:01:13]} 35. c5 {[%clk 0:01:50]}  Ke6 {[%clk 0:01:12]} 36. c4 {[%clk 0:01:50]}  Ke5 {[%clk 0:01:10]} 37. Ke3 {[%clk 0:01:50]}  Kf5 {[%clk 0:01:08]} 38. Rb6 {[%clk 0:01:22]}  Re8+ {[%clk 0:01:06]} 39. Kd3 {[%clk 0:01:22]}  Rd8+ {[%clk 0:01:05]} 40. Ke3 {[%clk 0:01:12]}  Rd7 {[%clk 0:01:06]} 41. b4 {[%clk 0:01:11]}  Ke5 {[%clk 0:00:53]} 42. b5 {[%clk 0:01:09]}  axb5 {[%clk 0:00:50]} 43. cxb5 {[%clk 0:01:09]}  Kd5 {[%clk 0:00:51]} 44. bxc6 {[%clk 0:01:05]}  bxc6 {[%clk 0:00:52]} 45. Ra6 {[%clk 0:01:05]}  Re7+ {[%clk 0:00:33]} 46. Kd3 {[%clk 0:01:02]}  Rf7 {[%clk 0:00:33]} 47. Ke2 {[%clk 0:00:51]}  Rf3 {[%clk 0:00:30]} 48. Ra4 {[%clk 0:00:47]}  Rc3 {[%clk 0:00:28]} 49. Kd2 {[%clk 0:00:44]}  Rxc5 {[%clk 0:00:28]} 50. Rf4 {[%clk 0:00:43]}  Rb5 {[%clk 0:00:20]} 51. Rf5+ {[%clk 0:00:43]}  Kc4 {[%clk 0:00:19]} 52. Rxb5 {[%clk 0:00:41]}  cxb5 {[%clk 0:00:19]} 53. Kc2 {[%clk 0:00:40]}  Kb4 {[%clk 0:00:15]} 54. Kb2 {[%clk 0:00:40]}  Ka4 {[%clk 0:00:15]} 55. Kc2 {[%clk 0:00:32]}  Ka3 {[%clk 0:00:15]} 56. Kb1 {[%clk 0:00:22]}  b4 {[%clk 0:00:15]} 57. Ka1 {[%clk 0:00:22]}  b3 {[%clk 0:00:15]} 58. axb3 {[%clk 0:00:23]}  Kxb3 {[%clk 0:00:15]} 59. Kb1 {[%clk 0:00:23]}  Kc3 {[%clk 0:00:15]} 60. Kc1 {[%clk 0:00:24]}  Kd3 {[%clk 0:00:16]} 61. Kd1 {[%clk 0:00:24]}  Ke3 {[%clk 0:00:17]} 62. Ke1 {[%clk 0:00:25]}  Kf3 {[%clk 0:00:17]} 63. Kf1 {[%clk 0:00:25]}  Ke3 {[%clk 0:00:17]} 64. Ke1 {[%clk 0:00:26]}  Kf3 {[%clk 0:00:17]} 65. Kf1 {[%clk 0:00:26]}  Ke3 {[%clk 0:00:15]} 66. Ke1 {[%clk 0:00:26]} 1/2-1/2

[Event "January 9 Early 2024"]
[Site "https://www.chess.com"]
[Date "2024.01.11"]
[Round "10"]
[White "Souleidis, Georgios"]
[Black "Krishnan, Ritvik"]
[Result "0-1"]
[Board "161"]
[TimeControl "180+1"]
[WhiteFideId "4206827"]
[BlackFideId "45055297"]
[WhiteElo "2613"]
[BlackElo "2516"]
[WhiteTeam "GRE"]
[BlackTeam "IND"]
[WhiteClock "0:00:02"]
[BlackClock "0:00:11"]

1. e4 {[%clk 0:03:00]}  c5 {[%clk 0:02:59]} 2. Be2 {[%clk 0:03:00]}  Nc6 {[%clk 0:02:58]} 3. d3 {[%clk 0:03:01]}  e6 {[%clk 0:02:57]} 4. f4 {[%clk 0:03:01]}  d5 {[%clk 0:02:58]} 5. Nf3 {[%clk 0:03:02]}  Nf6 {[%clk 0:02:55]} 6. e5 {[%clk 0:03:02]}  Ng8 {[%clk 0:02:55]} 7. O-O {[%clk 0:03:03]}  Nh6 {[%clk 0:02:53]} 8. c3 {[%clk 0:03:03]}  d4 {[%clk 0:02:51]} 9. Na3 {[%clk 0:03:00]}  Nf5 {[%clk 0:02:49]} 10. cxd4 {[%clk 0:02:44]}  cxd4 {[%clk 0:02:50]} 11. Bd2 {[%clk 0:02:34]}  Bc5 {[%clk 0:02:39]} 12. Rc1 {[%clk 0:02:32]}  Qe7 {[%clk 0:02:38]} 13. Nc4 {[%clk 0:02:23]}  O-O {[%clk 0:02:31]} 14. Qe1 {[%clk 0:02:08]}  b5 {[%clk 0:02:21]} 15. Na5 {[%clk 0:02:03]}  Nxa5 {[%clk 0:02:18]} 16. Bxa5 {[%clk 0:02:04]}  Bb7 {[%clk 0:02:17]} 17. Bd2 {[%clk 0:01:51]}  Rac8 {[%clk 0:02:17]} 18. Kh1 {[%clk 0:01:36]}  Rfd8 {[%clk 0:02:12]} 19. Ng1 {[%clk 0:01:21]}  Ne3 {[%clk 0:01:58]} 20. Rf2 {[%clk 0:01:14]}  Qh4 {[%clk 0:01:47]} 21. Bf3 {[%clk 0:01:07]}  Ng4 {[%clk 0:01:34]} 22. Bxg4 {[%clk 0:00:58]}  Qxg4 {[%clk 0:01:35]} 23. Qe2 {[%clk 0:00:48]}  Qg6 {[%clk 0:01:20]} 24. Nf3 {[%clk 0:00:46]}  Bb6 {[%clk 0:01:16]} 25. Rff1 {[%clk 0:00:46]}  Qh5 {[%clk 0:01:08]} 26. Ng1 {[%clk 0:00:37]}  Qf5 {[%clk 0:00:59]} 27. h3 {[%clk 0:00:33]}  Bd5 {[%clk 0:00:53]} 28. b3 {[%clk 0:00:28]}  a5 {[%clk 0:00:50]} 29. Kh2 {[%clk 0:00:26]}  h5 {[%clk 0:00:46]} 30. Nf3 {[%clk 0:00:25]}  a4 {[%clk 0:00:45]} 31. bxa4 {[%clk 0:00:20]}  bxa4 {[%clk 0:00:46]} 32. a3 {[%clk 0:00:21]}  Bb3 {[%clk 0:00:43]} 33. Rxc8 {[%clk 0:00:18]}  Rxc8 {[%clk 0:00:43]} 34. Rc1 {[%clk 0:00:19]}  Rc2 {[%clk 0:00:30]} 35. Rxc2 {[%clk 0:00:17]}  Bxc2 {[%clk 0:00:31]} 36. Ne1 {[%clk 0:00:18]}  Bb3 {[%clk 0:00:28]} 37. Kg3 {[%clk 0:00:13]}  Bd5 {[%clk 0:00:22]} 38. Bb4 {[%clk 0:00:08]}  Bd8 {[%clk 0:00:14]} 39. Nf3 {[%clk 0:00:07]}  Qg6+ {[%clk 0:00:14]} 40. Kh2 {[%clk 0:00:07]}  h4 {[%clk 0:00:15]} 41. Qf2 {[%clk 0:00:05]}  Qxd3 {[%clk 0:00:14]} 42. Nxd4 {[%clk 0:00:05]}  Qe4 {[%clk 0:00:14]} 43. Nb3 {[%clk 0:00:02]}  axb3 {[%clk 0:00:14]} 44. Bc3 {[%clk 0:00:02]}  Bb6 {[%clk 0:00:13]} 45. Qf1 {[%clk 0:00:01]}  Qc2 {[%clk 0:00:12]} 46. Bb4 {[%clk 0:00:01]}  Qxg2+ {[%clk 0:00:11]} 47. Qxg2 {[%clk 0:00:01]}  Bxg2 {[%clk 0:00:11]} 48. Kxg2 {[%clk 0:00:02]}  b2 {[%clk 0:00:11]} 0-1